[Event "Betsys MČR v online bleskovém šachu 2021"]
[Site "Chess.com"]
[Date "2021.04.17"]
[Round "12"]
[White "Listro33"]
[Black "Tretrik"]
[Result "0-1"]
[WhiteElo "1864"]
[BlackElo "2095"]
[TimeControl "180+1"]
[EndTime "11:01:18 PDT"]
[Termination "Uživatel Tretrik zvítězil na čas"]

1. d4 {[%clk 0:03:00.9]} 1... g6 {[%clk 0:02:58.2]} 2. Bf4 {[%clk 0:03:00.4]}
2... Bg7 {[%clk 0:02:58.2]} 3. e3 {[%clk 0:02:59.8]} 3... d6 {[%clk 0:02:57]} 4.
Nf3 {[%clk 0:02:59.5]} 4... f5 {[%clk 0:02:57]} 5. Bc4 {[%clk 0:02:52.8]} 5...
Nf6 {[%clk 0:02:55.6]} 6. Nbd2 {[%clk 0:02:44.8]} 6... e6 {[%clk 0:02:54.7]} 7.
Ng5 {[%clk 0:02:35.6]} 7... Qe7 {[%clk 0:02:50.2]} 8. c3 {[%clk 0:02:33.4]} 8...
h6 {[%clk 0:02:45.4]} 9. Ngf3 {[%clk 0:02:32.1]} 9... Nc6 {[%clk 0:02:40.8]} 10.
h3 {[%clk 0:02:29.8]} 10... Bd7 {[%clk 0:02:38.1]} 11. a4 {[%clk 0:02:06.1]}
11... Nd8 {[%clk 0:02:25.3]} 12. Qb3 {[%clk 0:01:59.5]} 12... Rb8 {[%clk
0:02:22.2]} 13. a5 {[%clk 0:01:56.1]} 13... Nf7 {[%clk 0:02:21.4]} 14. a6 {[%clk
0:01:53.1]} 14... b5 {[%clk 0:02:19]} 15. Ra5 {[%clk 0:01:45.6]} 15... O-O
{[%clk 0:02:07.4]} 16. Bd3 {[%clk 0:01:34.1]} 16... Kh7 {[%clk 0:01:52.8]} 17.
Qa3 {[%clk 0:01:31.1]} 17... Nd5 {[%clk 0:01:34.4]} 18. Bh2 {[%clk 0:01:22.4]}
18... b4 {[%clk 0:01:32.8]} 19. cxb4 {[%clk 0:01:03.7]} 19... Nxb4 {[%clk
0:01:32.1]} 20. Bb1 {[%clk 0:01:03.8]} 20... Bc6 {[%clk 0:00:56.3]} 21. O-O
{[%clk 0:01:01.6]} 21... Ba8 {[%clk 0:00:46.3]} 22. Rc1 {[%clk 0:00:57.5]} 22...
Kh8 {[%clk 0:00:43.7]} 23. Ra4 {[%clk 0:00:55.6]} 23... Nd5 {[%clk 0:00:38.7]}
24. Rac4 {[%clk 0:00:20.5]} 24... Rbc8 {[%clk 0:00:28.6]} 25. e4 {[%clk
0:00:18.8]} 25... Nb6 {[%clk 0:00:26.6]} 26. R4c3 {[%clk 0:00:13.1]} 26... Ng5
{[%clk 0:00:16.4]} 27. e5 {[%clk 0:00:09.9]} 27... dxe5 {[%clk 0:00:14.8]} 28.
Qxe7 {[%clk 0:00:08.7]} 28... Nd5 {[%clk 0:00:12]} 29. Qd7 {[%clk 0:00:06.3]}
29... e4 {[%clk 0:00:12.6]} 30. Nxg5 {[%clk 0:00:05]} 30... hxg5 {[%clk
0:00:13.5]} 31. Rc6 {[%clk 0:00:03.1]} 31... Bxc6 {[%clk 0:00:12.4]} 32. Rxc6
{[%clk 0:00:03.8]} 32... Nb6 {[%clk 0:00:12.3]} 33. Qxe6 {[%clk 0:00:03.1]}
33... Rce8 {[%clk 0:00:12.6]} 34. Qxg6 {[%clk 0:00:02.8]} 34... e3 {[%clk
0:00:13.3]} 35. Be5 {[%clk 0:00:01.7]} 35... Rxe5 {[%clk 0:00:10.4]} 36. dxe5
{[%clk 0:00:01.7]} 36... exd2 {[%clk 0:00:10]} 37. Bc2 {[%clk 0:00:02.2]} 37...
Rd8 {[%clk 0:00:09.6]} 38. Bd1 {[%clk 0:00:01.1]} 38... Nd5 {[%clk 0:00:10.2]}
0-1

[Event "Betsys MČR v online bleskovém šachu 2021"]
[Site "Chess.com"]
[Date "2021.04.17"]
[Round "12"]
[White "FMD-MP"]
[Black "iDarkTraveler"]
[Result "0-1"]
[WhiteElo "1714"]
[BlackElo "1948"]
[TimeControl "180+1"]
[EndTime "11:01:19 PDT"]
[Termination "Uživatel iDarkTraveler zvítězil matem"]

1. c4 {[%clk 0:03:00.9]} 1... g6 {[%clk 0:02:37.4]} 2. Nc3 {[%clk 0:03:01]} 2...
Bg7 {[%clk 0:02:37.4]} 3. g3 {[%clk 0:03:01.5]} 3... Nf6 {[%clk 0:02:38.3]} 4.
Bg2 {[%clk 0:03:01.9]} 4... O-O {[%clk 0:02:38.3]} 5. d3 {[%clk 0:03:02.5]} 5...
d6 {[%clk 0:02:38.6]} 6. e4 {[%clk 0:03:02.5]} 6... e5 {[%clk 0:02:38.7]} 7.
Nge2 {[%clk 0:03:02.9]} 7... c5 {[%clk 0:02:38.1]} 8. O-O {[%clk 0:03:03.1]}
8... Nc6 {[%clk 0:02:38.5]} 9. h3 {[%clk 0:03:03.5]} 9... Nd4 {[%clk 0:02:38.8]}
10. Kh2 {[%clk 0:03:03.7]} 10... Be6 {[%clk 0:02:39.1]} 11. f4 {[%clk
0:02:55.2]} 11... Qd7 {[%clk 0:02:17.5]} 12. Nd5 {[%clk 0:02:48.3]} 12... Nxe2
{[%clk 0:02:04.7]} 13. Qxe2 {[%clk 0:02:46.7]} 13... Bxd5 {[%clk 0:02:02.6]} 14.
cxd5 {[%clk 0:02:44.1]} 14... exf4 {[%clk 0:02:01.4]} 15. Bxf4 {[%clk
0:02:43.3]} 15... Rae8 {[%clk 0:01:58.6]} 16. Qd2 {[%clk 0:02:19.2]} 16... Nh5
{[%clk 0:01:55.1]} 17. Bh6 {[%clk 0:02:14.6]} 17... Be5 {[%clk 0:01:38.4]} 18.
Bxf8 {[%clk 0:02:04.6]} 18... Bxg3+ {[%clk 0:01:35.9]} 19. Kg1 {[%clk
0:01:58.1]} 19... Rxf8 {[%clk 0:01:36.1]} 20. Rf3 {[%clk 0:01:47.7]} 20... Be5
{[%clk 0:01:34]} 21. Raf1 {[%clk 0:01:47.9]} 21... Qa4 {[%clk 0:01:22.6]} 22. b4
{[%clk 0:01:22.1]} 22... Qxb4 {[%clk 0:01:06.4]} 23. Qxb4 {[%clk 0:01:20.4]}
23... cxb4 {[%clk 0:01:07.3]} 24. Rd1 {[%clk 0:01:10.7]} 24... Rc8 {[%clk
0:01:04.2]} 25. d4 {[%clk 0:01:10.4]} 25... Bf4 {[%clk 0:00:56.6]} 26. Rb3
{[%clk 0:00:59.6]} 26... a5 {[%clk 0:00:54.9]} 27. Bf3 {[%clk 0:00:54.8]} 27...
Nf6 {[%clk 0:00:38.8]} 28. Re1 {[%clk 0:00:49.1]} 28... Rc2 {[%clk 0:00:34.6]}
29. e5 {[%clk 0:00:48.7]} 29... dxe5 {[%clk 0:00:32.7]} 30. dxe5 {[%clk
0:00:49.6]} 30... Nd7 {[%clk 0:00:30]} 31. e6 {[%clk 0:00:48.8]} 31... fxe6
{[%clk 0:00:29.9]} 32. dxe6 {[%clk 0:00:49.7]} 32... Ne5 {[%clk 0:00:28.4]} 33.
a3 {[%clk 0:00:41]} 33... Kf8 {[%clk 0:00:22.3]} 34. axb4 {[%clk 0:00:40.7]}
34... axb4 {[%clk 0:00:22.3]} 35. Rxb4 {[%clk 0:00:28.3]} 35... Nxf3+ {[%clk
0:00:21.9]} 36. Kf1 {[%clk 0:00:26.7]} 36... Nxe1 {[%clk 0:00:20.9]} 37. Rxf4+
{[%clk 0:00:26.7]} 37... Ke7 {[%clk 0:00:19.7]} 38. Kxe1 {[%clk 0:00:27.2]}
38... Kxe6 {[%clk 0:00:19.5]} 39. Rh4 {[%clk 0:00:25.4]} 39... h5 {[%clk
0:00:18.9]} 40. Rb4 {[%clk 0:00:23.6]} 40... Rc7 {[%clk 0:00:18.3]} 41. Kf2
{[%clk 0:00:22.8]} 41... Kf6 {[%clk 0:00:18]} 42. Kg3 {[%clk 0:00:22.7]} 42...
Kg5 {[%clk 0:00:17.5]} 43. h4+ {[%clk 0:00:22.1]} 43... Kh6 {[%clk 0:00:17.5]}
44. Kf4 {[%clk 0:00:21.3]} 44... Rf7+ {[%clk 0:00:16.8]} 45. Kg3 {[%clk
0:00:20.7]} 45... Rc7 {[%clk 0:00:13.7]} 46. Kf4 {[%clk 0:00:20.4]} 46... Kg7
{[%clk 0:00:14.1]} 47. Rb5 {[%clk 0:00:17.3]} 47... Rc4+ {[%clk 0:00:12.1]} 48.
Kg5 {[%clk 0:00:17.5]} 48... Rg4# {[%clk 0:00:11.9]} 0-1

[Event "Betsys MČR v online bleskovém šachu 2021"]
[Site "Chess.com"]
[Date "2021.04.17"]
[Round "12"]
[White "Zelezny1984"]
[Black "tiger196223"]
[Result "1-0"]
[WhiteElo "2062"]
[BlackElo "1835"]
[TimeControl "180+1"]
[EndTime "11:01:20 PDT"]
[Termination "Uživatel Zelezny1984 zvítězil na čas"]

1. e4 {[%clk 0:03:00.9]} 1... e6 {[%clk 0:03:00.1]} 2. d4 {[%clk 0:03:00.4]}
2... d5 {[%clk 0:03:00.4]} 3. Nd2 {[%clk 0:03:00.8]} 3... dxe4 {[%clk
0:02:59.7]} 4. Nxe4 {[%clk 0:03:01.7]} 4... Nd7 {[%clk 0:02:59.8]} 5. Nf3 {[%clk
0:03:00.3]} 5... Be7 {[%clk 0:03:00.4]} 6. Bd3 {[%clk 0:02:54.5]} 6... Ngf6
{[%clk 0:03:00.5]} 7. O-O {[%clk 0:02:52.8]} 7... O-O {[%clk 0:03:00.4]} 8. Ne5
{[%clk 0:02:46.3]} 8... Nxe4 {[%clk 0:02:52.7]} 9. Bxe4 {[%clk 0:02:44.1]} 9...
Nxe5 {[%clk 0:02:50.9]} 10. dxe5 {[%clk 0:02:45]} 10... Qxd1 {[%clk 0:02:48.4]}
11. Rxd1 {[%clk 0:02:45.9]} 11... Rd8 {[%clk 0:02:47.5]} 12. Be3 {[%clk
0:02:45]} 12... Rxd1+ {[%clk 0:02:44.7]} 13. Rxd1 {[%clk 0:02:45.9]} 13... Kf8
{[%clk 0:02:42.3]} 14. Bxh7 {[%clk 0:02:33.7]} 14... g6 {[%clk 0:02:41.6]} 15.
Bh6+ {[%clk 0:02:34]} 15... Ke8 {[%clk 0:02:41]} 16. g3 {[%clk 0:02:27.2]} 16...
b6 {[%clk 0:02:38.5]} 17. h4 {[%clk 0:02:19.9]} 17... Bb7 {[%clk 0:02:30]} 18.
Bg7 {[%clk 0:01:48.6]} 18... Bf8 {[%clk 0:02:12.6]} 19. Bf6 {[%clk 0:01:47.5]}
19... Be7 {[%clk 0:02:12.2]} 20. f4 {[%clk 0:01:33.6]} 20... Bxf6 {[%clk
0:02:01.8]} 21. exf6 {[%clk 0:01:34.5]} 21... Bf3 {[%clk 0:01:39]} 22. Rd3
{[%clk 0:01:29.1]} 22... Bg4 {[%clk 0:01:27.8]} 23. Kf2 {[%clk 0:01:25.5]} 23...
Rd8 {[%clk 0:01:24.3]} 24. Ke3 {[%clk 0:01:15.2]} 24... Rxd3+ {[%clk 0:01:22.4]}
25. cxd3 {[%clk 0:01:16]} 25... Kd7 {[%clk 0:01:18.1]} 26. Kd4 {[%clk 0:01:16]}
26... c5+ {[%clk 0:01:09.4]} 27. Ke5 {[%clk 0:01:15.3]} 27... Be2 {[%clk
0:01:05.8]} 28. d4 {[%clk 0:01:12.5]} 28... cxd4 {[%clk 0:00:47.1]} 29. Kxd4
{[%clk 0:01:13.4]} 29... a5 {[%clk 0:00:43.4]} 30. Ke5 {[%clk 0:01:11]} 30... a4
{[%clk 0:00:32]} 31. b3 {[%clk 0:00:58.9]} 31... a3 {[%clk 0:00:27.2]} 32. Bg8
{[%clk 0:00:52]} 32... Ke8 {[%clk 0:00:25.7]} 33. Kd6 {[%clk 0:00:51.5]} 33...
Bd3 {[%clk 0:00:24.8]} 34. g4 {[%clk 0:00:30.4]} 34... Bb1 {[%clk 0:00:20.9]}
35. h5 {[%clk 0:00:30.5]} 35... Bxa2 {[%clk 0:00:11.1]} 36. hxg6 {[%clk
0:00:27.9]} 36... Bxb3 {[%clk 0:00:07]} 37. Bxf7+ {[%clk 0:00:22.3]} 37... Kf8
{[%clk 0:00:04.5]} 38. Bxe6 {[%clk 0:00:14.7]} 38... Bxe6 {[%clk 0:00:03.1]} 39.
Kxe6 {[%clk 0:00:14.2]} 39... a2 {[%clk 0:00:03.1]} 40. g7+ {[%clk 0:00:11.5]}
40... Kg8 {[%clk 0:00:02.8]} 41. Ke7 {[%clk 0:00:11.8]} 1-0

[Event "Betsys MČR v online bleskovém šachu 2021"]
[Site "Chess.com"]
[Date "2021.04.17"]
[Round "12"]
[White "AdaTra"]
[Black "adiklan"]
[Result "0-1"]
[WhiteElo "1657"]
[BlackElo "1894"]
[TimeControl "180+1"]
[EndTime "11:01:20 PDT"]
[Termination "Uživatel adiklan zvítězil na čas"]

1. d4 {[%clk 0:03:00.9]} 1... d5 {[%clk 0:02:59.8]} 2. Bf4 {[%clk 0:03:00.2]}
2... e6 {[%clk 0:02:59.8]} 3. e3 {[%clk 0:02:59.9]} 3... Bd6 {[%clk 0:03:00.4]}
4. Bg3 {[%clk 0:02:58.3]} 4... Nf6 {[%clk 0:03:00.4]} 5. Nf3 {[%clk 0:02:57.6]}
5... O-O {[%clk 0:03:01]} 6. Bd3 {[%clk 0:02:56.6]} 6... c6 {[%clk 0:03:01.2]}
7. Nbd2 {[%clk 0:02:55.6]} 7... Qc7 {[%clk 0:02:59.8]} 8. Ne5 {[%clk 0:02:52.3]}
8... Nbd7 {[%clk 0:02:59.3]} 9. f4 {[%clk 0:02:50.1]} 9... c5 {[%clk 0:02:52.3]}
10. c3 {[%clk 0:02:49.5]} 10... Ne8 {[%clk 0:02:20.7]} 11. Qg4 {[%clk
0:02:27.7]} 11... Nb6 {[%clk 0:01:55.2]} 12. Qh4 {[%clk 0:01:58.4]} 12... g6
{[%clk 0:01:51.1]} 13. Ndf3 {[%clk 0:01:51.9]} 13... f5 {[%clk 0:01:17.3]} 14.
Ng5 {[%clk 0:01:37.5]} 14... Nf6 {[%clk 0:01:15.6]} 15. O-O {[%clk 0:01:18.5]}
15... Ng4 {[%clk 0:00:55]} 16. Nxg4 {[%clk 0:01:11.3]} 16... fxg4 {[%clk
0:00:54.4]} 17. Rf2 {[%clk 0:00:49.9]} 17... Nc4 {[%clk 0:00:42.4]} 18. Bxc4
{[%clk 0:00:43.9]} 18... dxc4 {[%clk 0:00:42.6]} 19. Ne4 {[%clk 0:00:38.7]}
19... Be7 {[%clk 0:00:35.7]} 20. Qh6 {[%clk 0:00:32.2]} 20... cxd4 {[%clk
0:00:26.2]} 21. exd4 {[%clk 0:00:31.8]} 21... Bf6 {[%clk 0:00:20.6]} 22. Raf1
{[%clk 0:00:29.8]} 22... Bg7 {[%clk 0:00:20.6]} 23. Qg5 {[%clk 0:00:28.1]} 23...
Qd8 {[%clk 0:00:20]} 24. Qxg4 {[%clk 0:00:23.8]} 24... e5 {[%clk 0:00:20.1]} 25.
Qe2 {[%clk 0:00:22.7]} 25... exd4 {[%clk 0:00:20.6]} 26. cxd4 {[%clk 0:00:21.4]}
26... Qxd4 {[%clk 0:00:21.1]} 27. Kh1 {[%clk 0:00:18.8]} 27... Bf5 {[%clk
0:00:21.3]} 28. Ng5 {[%clk 0:00:18.2]} 28... Rae8 {[%clk 0:00:20.4]} 29. Qd1
{[%clk 0:00:14.6]} 29... Qxd1 {[%clk 0:00:19.3]} 30. Rxd1 {[%clk 0:00:15.5]}
30... Bg4 {[%clk 0:00:18]} 31. Rc1 {[%clk 0:00:13.4]} 31... h5 {[%clk 0:00:17]}
32. h3 {[%clk 0:00:12.7]} 32... Bf5 {[%clk 0:00:16.3]} 33. Rxc4 {[%clk
0:00:11.2]} 33... Re1+ {[%clk 0:00:13.7]} 34. Kh2 {[%clk 0:00:11]} 34... Re3
{[%clk 0:00:14.4]} 35. Rd2 {[%clk 0:00:08.8]} 35... h4 {[%clk 0:00:12.5]} 36.
Bf2 {[%clk 0:00:06.8]} 36... Re7 {[%clk 0:00:09.7]} 37. Bxh4 {[%clk 0:00:04.1]}
37... Bf6 {[%clk 0:00:10.2]} 0-1

[Event "Betsys MČR v online bleskovém šachu 2021"]
[Site "Chess.com"]
[Date "2021.04.17"]
[Round "12"]
[White "svobodan"]
[Black "PaulS_CR"]
[Result "0-1"]
[WhiteElo "1639"]
[BlackElo "1830"]
[TimeControl "180+1"]
[EndTime "11:01:20 PDT"]
[Termination "Uživatel PaulS_CR zvítězil matem"]

1. e4 {[%clk 0:03:00.9]} 1... e6 {[%clk 0:02:58.1]} 2. d4 {[%clk 0:03:00.3]}
2... d5 {[%clk 0:02:55.9]} 3. Nc3 {[%clk 0:02:59.8]} 3... Bb4 {[%clk 0:02:54.5]}
4. e5 {[%clk 0:02:59.4]} 4... c5 {[%clk 0:02:53.3]} 5. a3 {[%clk 0:02:59.7]}
5... Ba5 {[%clk 0:02:46.8]} 6. b4 {[%clk 0:02:53.3]} 6... cxd4 {[%clk
0:02:45.5]} 7. Nb5 {[%clk 0:02:40.5]} 7... Bc7 {[%clk 0:02:44.6]} 8. Nxc7+
{[%clk 0:02:30.8]} 8... Qxc7 {[%clk 0:02:42.7]} 9. Nf3 {[%clk 0:02:30.2]} 9...
Nc6 {[%clk 0:02:41.3]} 10. Bd3 {[%clk 0:02:24.7]} 10... Nxe5 {[%clk 0:02:37.6]}
11. Nxd4 {[%clk 0:02:00.6]} 11... Qc3+ {[%clk 0:02:30.9]} 12. Bd2 {[%clk
0:02:00.1]} 12... Nxd3+ {[%clk 0:02:24.5]} 13. cxd3 {[%clk 0:01:52.5]} 13...
Qxd4 {[%clk 0:02:23.9]} 14. O-O {[%clk 0:01:52.3]} 14... Nf6 {[%clk 0:02:22.3]}
15. Be3 {[%clk 0:01:52]} 15... Qg4 {[%clk 0:02:10.8]} 16. Qa4+ {[%clk
0:01:45.8]} 16... Bd7 {[%clk 0:02:10.4]} 17. Qb3 {[%clk 0:01:41.8]} 17... O-O
{[%clk 0:02:09.5]} 18. Bc5 {[%clk 0:01:41.1]} 18... Rfe8 {[%clk 0:02:07.5]} 19.
Rae1 {[%clk 0:01:39.8]} 19... b6 {[%clk 0:02:06.6]} 20. Be3 {[%clk 0:01:38.2]}
20... d4 {[%clk 0:02:03.9]} 21. Bd2 {[%clk 0:01:34.2]} 21... Bc6 {[%clk
0:02:03.3]} 22. f3 {[%clk 0:01:32.9]} 22... Qg6 {[%clk 0:01:59.4]} 23. Re5
{[%clk 0:01:28.1]} 23... h6 {[%clk 0:01:47.3]} 24. b5 {[%clk 0:01:08.5]} 24...
Bd5 {[%clk 0:01:42.3]} 25. Qb1 {[%clk 0:01:06.7]} 25... Nd7 {[%clk 0:01:39.2]}
26. Ree1 {[%clk 0:01:01.2]} 26... Nc5 {[%clk 0:01:38.7]} 27. Qa1 {[%clk
0:00:38]} 27... Qxd3 {[%clk 0:01:35.6]} 28. Rd1 {[%clk 0:00:35]} 28... Nb3
{[%clk 0:01:34.8]} 29. Qb2 {[%clk 0:00:32.5]} 29... Nxd2 {[%clk 0:01:33.7]} 30.
Rxd2 {[%clk 0:00:31.7]} 30... Qc3 {[%clk 0:01:33]} 31. Rfd1 {[%clk 0:00:20.9]}
31... Qxb2 {[%clk 0:01:29.8]} 32. Rxb2 {[%clk 0:00:21.5]} 32... e5 {[%clk
0:01:28.2]} 33. f4 {[%clk 0:00:20.3]} 33... f6 {[%clk 0:01:26.8]} 34. Kf2 {[%clk
0:00:14.6]} 34... Rac8 {[%clk 0:01:23.5]} 35. Rbd2 {[%clk 0:00:11.9]} 35... Rc3
{[%clk 0:01:22]} 36. Rd3 {[%clk 0:00:04.8]} 36... Rxd3 {[%clk 0:01:17]} 37. Rxd3
{[%clk 0:00:04.6]} 37... Kf7 {[%clk 0:01:16.9]} 38. Kg3 {[%clk 0:00:03.1]} 38...
Ke6 {[%clk 0:01:13]} 39. Kh4 {[%clk 0:00:01.7]} 39... g5+ {[%clk 0:01:11.5]} 40.
Kg3 {[%clk 0:00:01.5]} 40... gxf4+ {[%clk 0:01:10.6]} 41. Kf2 {[%clk 0:00:01.9]}
41... Rg8 {[%clk 0:01:08.4]} 42. Rh3 {[%clk 0:00:02.3]} 42... Rxg2+ {[%clk
0:01:06.8]} 43. Kf1 {[%clk 0:00:02.6]} 43... Rg6 {[%clk 0:01:04.4]} 44. a4
{[%clk 0:00:02.9]} 44... Bg2+ {[%clk 0:01:03.1]} 45. Ke1 {[%clk 0:00:02.3]}
45... Bxh3 {[%clk 0:01:01.2]} 46. a5 {[%clk 0:00:02.9]} 46... Rg2 {[%clk
0:00:56.6]} 47. axb6 {[%clk 0:00:02.5]} 47... axb6 {[%clk 0:00:55.7]} 48. Kf1
{[%clk 0:00:03]} 48... Rb2+ {[%clk 0:00:54.9]} 49. Kg1 {[%clk 0:00:02]} 49...
Bf5 {[%clk 0:00:48.5]} 50. Kf1 {[%clk 0:00:01.7]} 50... f3 {[%clk 0:00:47.7]}
51. Ke1 {[%clk 0:00:02]} 51... e4 {[%clk 0:00:46]} 52. Kf1 {[%clk 0:00:02]}
52... e3 {[%clk 0:00:45.6]} 53. Kg1 {[%clk 0:00:02]} 53... Rb1# {[%clk
0:00:42.7]} 0-1

[Event "Betsys MČR v online bleskovém šachu 2021"]
[Site "Chess.com"]
[Date "2021.04.17"]
[Round "12"]
[White "marosino"]
[Black "p_kana"]
[Result "1-0"]
[WhiteElo "1592"]
[BlackElo "1770"]
[TimeControl "180+1"]
[EndTime "11:01:20 PDT"]
[Termination "Uživatel marosino zvítězil na čas"]

1. b3 {[%clk 0:03:00.9]} 1... b6 {[%clk 0:02:59.1]} 2. Bb2 {[%clk 0:03:00.6]}
2... Bb7 {[%clk 0:03:00]} 3. Nf3 {[%clk 0:03:00.2]} 3... e6 {[%clk 0:02:58.9]}
4. g3 {[%clk 0:02:58.7]} 4... Nf6 {[%clk 0:02:58.7]} 5. Bg2 {[%clk 0:02:58.5]}
5... Be7 {[%clk 0:02:57.7]} 6. O-O {[%clk 0:02:57.9]} 6... O-O {[%clk
0:02:55.4]} 7. c4 {[%clk 0:02:57.6]} 7... c5 {[%clk 0:02:54.5]} 8. e3 {[%clk
0:02:55.4]} 8... d6 {[%clk 0:02:48.3]} 9. d4 {[%clk 0:02:54.8]} 9... cxd4 {[%clk
0:02:47.4]} 10. exd4 {[%clk 0:02:54.9]} 10... d5 {[%clk 0:02:43.6]} 11. Nbd2
{[%clk 0:02:52.1]} 11... Nc6 {[%clk 0:02:38.2]} 12. a3 {[%clk 0:02:45.9]} 12...
Rc8 {[%clk 0:02:36.3]} 13. Re1 {[%clk 0:02:43.6]} 13... Qd7 {[%clk 0:02:28.6]}
14. Ne5 {[%clk 0:02:41.5]} 14... Qc7 {[%clk 0:02:10.2]} 15. Ndf3 {[%clk
0:02:31.6]} 15... dxc4 {[%clk 0:02:01.4]} 16. bxc4 {[%clk 0:02:26.4]} 16... Rfd8
{[%clk 0:01:59.7]} 17. Nxc6 {[%clk 0:02:19.4]} 17... Qxc6 {[%clk 0:01:44]} 18.
Nh4 {[%clk 0:02:14.6]} 18... Qc7 {[%clk 0:01:39.2]} 19. Rc1 {[%clk 0:02:06.3]}
19... Bxg2 {[%clk 0:01:33.7]} 20. Nxg2 {[%clk 0:02:04.6]} 20... Qc6 {[%clk
0:01:28.7]} 21. Ne3 {[%clk 0:01:59.2]} 21... Rd7 {[%clk 0:01:26.2]} 22. Qb3
{[%clk 0:01:50.7]} 22... Qf3 {[%clk 0:01:10.1]} 23. Qd1 {[%clk 0:01:46.2]} 23...
Qxd1 {[%clk 0:01:08.7]} 24. Rexd1 {[%clk 0:01:44.1]} 24... Ne4 {[%clk
0:01:07.2]} 25. d5 {[%clk 0:01:38.9]} 25... exd5 {[%clk 0:00:57.4]} 26. cxd5
{[%clk 0:01:31.9]} 26... Rxc1 {[%clk 0:00:53.6]} 27. Rxc1 {[%clk 0:01:28.1]}
27... Bc5 {[%clk 0:00:53]} 28. Rd1 {[%clk 0:01:20.6]} 28... g6 {[%clk
0:00:41.6]} 29. Kf1 {[%clk 0:01:14.8]} 29... f5 {[%clk 0:00:35.6]} 30. Ke2
{[%clk 0:01:12.9]} 30... Kf8 {[%clk 0:00:29.6]} 31. f3 {[%clk 0:01:12.4]} 31...
Nd6 {[%clk 0:00:26]} 32. f4 {[%clk 0:01:05.2]} 32... Bxe3 {[%clk 0:00:23.1]} 33.
Kxe3 {[%clk 0:01:05]} 33... Nc4+ {[%clk 0:00:23]} 34. Kd4 {[%clk 0:00:59.3]}
34... Nxb2 {[%clk 0:00:23.9]} 35. Rd2 {[%clk 0:00:58.7]} 35... Na4 {[%clk
0:00:21.7]} 36. Ke5 {[%clk 0:00:57.6]} 36... Ke7 {[%clk 0:00:19.7]} 37. d6+
{[%clk 0:00:55.3]} 37... Kf7 {[%clk 0:00:19.5]} 38. Rc2 {[%clk 0:00:52.3]} 38...
Nc5 {[%clk 0:00:19.3]} 39. Kd5 {[%clk 0:00:47.1]} 39... Ne4 {[%clk 0:00:15.7]}
40. Kc6 {[%clk 0:00:44.6]} 40... Ke6 {[%clk 0:00:13.1]} 41. a4 {[%clk
0:00:39.8]} 41... Nxd6 {[%clk 0:00:11.4]} 42. Rd2 {[%clk 0:00:34.5]} 42... Rd8
{[%clk 0:00:11.4]} 43. Re2+ {[%clk 0:00:33.8]} 43... Ne4 {[%clk 0:00:10.7]} 44.
Kb7 {[%clk 0:00:31.8]} 44... Rd7+ {[%clk 0:00:10]} 45. Ka6 {[%clk 0:00:30.7]}
45... Ke7 {[%clk 0:00:02.2]} 46. a5 {[%clk 0:00:29.3]} 1-0

[Event "Betsys MČR v online bleskovém šachu 2021"]
[Site "Chess.com"]
[Date "2021.04.17"]
[Round "12"]
[White "Svandik49"]
[Black "petr812"]
[Result "1-0"]
[WhiteElo "2263"]
[BlackElo "2116"]
[TimeControl "180+1"]
[EndTime "11:01:21 PDT"]
[Termination "Uživatel Svandik49 zvítězil na čas"]

1. e4 {[%clk 0:03:00.9]} 1... e6 {[%clk 0:02:59.7]} 2. d3 {[%clk 0:02:59.1]}
2... d5 {[%clk 0:03:00.6]} 3. Nd2 {[%clk 0:02:59.6]} 3... dxe4 {[%clk
0:02:59.7]} 4. dxe4 {[%clk 0:02:59.7]} 4... Nf6 {[%clk 0:02:59.5]} 5. Ngf3
{[%clk 0:02:59.7]} 5... Bc5 {[%clk 0:02:59]} 6. h3 {[%clk 0:02:31.7]} 6... O-O
{[%clk 0:02:57.9]} 7. g3 {[%clk 0:02:31.5]} 7... Nc6 {[%clk 0:02:53.6]} 8. Bg2
{[%clk 0:02:31]} 8... Bd7 {[%clk 0:02:45.1]} 9. O-O {[%clk 0:02:30.4]} 9... Qe7
{[%clk 0:02:44]} 10. c3 {[%clk 0:02:29.4]} 10... Rad8 {[%clk 0:02:42.4]} 11. Qc2
{[%clk 0:02:29]} 11... e5 {[%clk 0:02:38.6]} 12. Nc4 {[%clk 0:02:25.7]} 12... a6
{[%clk 0:02:34.5]} 13. Be3 {[%clk 0:02:19.3]} 13... b5 {[%clk 0:02:29.2]} 14.
Bxc5 {[%clk 0:02:18.2]} 14... Qxc5 {[%clk 0:02:26.4]} 15. Ne3 {[%clk 0:02:19.1]}
15... b4 {[%clk 0:02:08.7]} 16. cxb4 {[%clk 0:02:03.7]} 16... Qxb4 {[%clk
0:02:05.2]} 17. Nd5 {[%clk 0:02:03.9]} 17... Nxd5 {[%clk 0:02:02.3]} 18. exd5
{[%clk 0:02:04.8]} 18... Ne7 {[%clk 0:01:55.2]} 19. Nxe5 {[%clk 0:01:57.3]}
19... Bf5 {[%clk 0:01:41.5]} 20. Qb3 {[%clk 0:01:48.4]} 20... Qxb3 {[%clk
0:01:35]} 21. axb3 {[%clk 0:01:49.3]} 21... Rd6 {[%clk 0:01:30.3]} 22. Nc6
{[%clk 0:01:43.4]} 22... Nxd5 {[%clk 0:01:25.6]} 23. Bxd5 {[%clk 0:01:40.8]}
23... Bxh3 {[%clk 0:01:15.6]} 24. Bg2 {[%clk 0:01:35.8]} 24... Bxg2 {[%clk
0:01:10.1]} 25. Ne7+ {[%clk 0:01:34.6]} 25... Kh8 {[%clk 0:01:09.9]} 26. Kxg2
{[%clk 0:01:35.5]} 26... Re8 {[%clk 0:00:59.9]} 27. Rfe1 {[%clk 0:01:29.6]}
27... Rb8 {[%clk 0:00:51.9]} 28. Nf5 {[%clk 0:01:26.1]} 28... Rd5 {[%clk
0:00:46.4]} 29. Ne3 {[%clk 0:01:24.8]} 29... Rd6 {[%clk 0:00:44.2]} 30. Nc4
{[%clk 0:01:24.5]} 30... Rc6 {[%clk 0:00:39.6]} 31. Ra5 {[%clk 0:01:17.7]} 31...
g5 {[%clk 0:00:34.3]} 32. Rxg5 {[%clk 0:01:15.8]} 32... h6 {[%clk 0:00:32.9]}
33. Rf5 {[%clk 0:01:11.3]} 33... Rxb3 {[%clk 0:00:30.3]} 34. Rxf7 {[%clk
0:01:09.8]} 34... Rb8 {[%clk 0:00:23.2]} 35. Ne5 {[%clk 0:01:06.5]} 35... Re6
{[%clk 0:00:20.4]} 36. Nd7 {[%clk 0:01:02.5]} 36... Rxe1 {[%clk 0:00:15.7]} 37.
Nxb8 {[%clk 0:01:01.9]} 37... Rb1 {[%clk 0:00:15.6]} 38. Nxa6 {[%clk 0:00:57.9]}
38... Rxb2 {[%clk 0:00:15.1]} 39. Rxc7 {[%clk 0:00:57.5]} 39... Rb6 {[%clk
0:00:14.6]} 40. Nc5 {[%clk 0:00:57.2]} 40... Rf6 {[%clk 0:00:13.9]} 41. Nd3
{[%clk 0:00:57.4]} 41... Rg6 {[%clk 0:00:13.1]} 42. Nf4 {[%clk 0:00:57.7]} 42...
Rf6 {[%clk 0:00:12.3]} 43. Kh3 {[%clk 0:00:58.2]} 43... h5 {[%clk 0:00:10.6]}
44. Kh4 {[%clk 0:00:58.2]} 44... Rf5 {[%clk 0:00:10.4]} 45. Rd7 {[%clk
0:00:55.8]} 45... Kg8 {[%clk 0:00:09.7]} 46. Rd5 {[%clk 0:00:55.2]} 46... Rf7
{[%clk 0:00:08.2]} 47. Rg5+ {[%clk 0:00:52.4]} 47... Kf8 {[%clk 0:00:06.4]} 48.
Rxh5 {[%clk 0:00:53.3]} 48... Kg7 {[%clk 0:00:05.8]} 49. Rg5+ {[%clk 0:00:50.8]}
49... Kh7 {[%clk 0:00:05.5]} 50. Kg4 {[%clk 0:00:50]} 50... Kh6 {[%clk
0:00:03.8]} 51. Rg6+ {[%clk 0:00:49.4]} 51... Kh7 {[%clk 0:00:03.7]} 52. Kg5
{[%clk 0:00:49.8]} 52... Rb7 {[%clk 0:00:02.2]} 53. Rf6 {[%clk 0:00:49.5]} 53...
Rb5+ {[%clk 0:00:01.2]} 54. Rf5 {[%clk 0:00:49.8]} 1-0